[Event "XII Cracow ICC-A 2024"]
[Site "Krakow"]
[Date "2024.06.24"]
[Round "4.18"]
[White "Mahitosh Dey"]
[Black "Alexiadis, Hristos"]
[Result "1-0"]
[ECO "B92"]
[WhiteElo "2232"]
[BlackElo "2378"]
[Annotator "RC"]
[PlyCount "65"]
[EventDate "2024.06.20"]
[EventType "swiss"]
[EventCountry "POL"]
[SourceTitle "playchess.com"]
[Source "ChessBase"]
[SourceQuality "1"]
[TimeControl "40/5400+30:1800+30"]

1. e4 {[%emt 0:04:56]} c5 {[%emt 0:01:18]} 2. Nf3 {[%emt 0:00:11]} d6 {[%emt 0:00:07]} 3. d4 {[%emt 0:00:09]} cxd4 {[%emt 0:00:09]} 4. Nxd4 {[%emt 0:00:14]} Nf6 {[%emt 0:00:08]} 5. Nc3 {[%emt 0:00:05]} a6 {[%emt 0:00:04]} 6. Be2 {[%emt 0:00:02]} e5 {[%emt 0:00:32]} 7. Nb3 {[%emt 0:00:09]} Be7 {[%emt 0:00:05]} 8. Be3 {[%emt 0:00:07]} Be6 {[%emt 0:00:05]} 9. Qd3 {[%emt 0:00:03]} O-O {[%emt 0:03:36]} 10. Nd5 {[%emt 0:00:06]} Nbd7 {[%emt 0:00:21]} 11. O-O-O {[%emt 0:00:08]} Bxd5 {[%emt 0:01:31]} 12. exd5 {[%emt 0:00:05]} Nb6 {[%emt 0:00:11]} 13. Bf3 {[%emt 0:02:15]} Nfd7 {[%emt 0:00:51]} 14. Be4 {[%emt 0:21:22]} g6 {[%emt 0:08:33]} 15. g4 {[%emt 0:00:14]} Bg5 {[%emt 0:05:48]} 16. h4 {[%emt 0:00:25]} Bxe3+ {[%emt 0:00:09]} 17. Qxe3 {[%emt 0:02:35]} Nc4 {[%emt 0:25:46]} 18. Qe2 {[%emt 0:02:58]} b5 {[%emt 0:02:46]} 19. g5 {[%emt 0:07:14]} Rc8 {[%emt 0:03:40]} 20. Kb1 {[%emt 0:23:36]} Nc5 {[%emt 0:09:02]} 21. Nxc5 {[%emt 0:02:30]} Rxc5 {[%emt 0:00:05]} 22. h5 {[%emt 0:20:32]} Rc7 {[%emt 0:07:36]} 23. Qg4 {[%emt 0:00:57]} Re7 {[%emt 0:01:40]} 24. Rd3 {[%emt 0:05:44]} Qa5 {[%emt 0:02:36]} 25. c3 {[%emt 0:00:28]} b4 {[%emt 0:04:30]} 26. hxg6 {[%emt 0:00:36]} fxg6 {[%emt 0:00:05]} 27. Bxg6 {[%emt 0:00:04]} hxg6 {[%emt 0:00:24]} 28. Qxc4 {[%emt 0:00:06]} bxc3 {[%emt 0:01:16]} 29. Rxc3 {[%emt 0:00:35]} Rb7 {[%emt 0:04:11]} 30. Rch3 {[%emt 0:01:45]} Rg7 {[%emt 0:03:12]} 31. Rh8+ {[%emt 0:00:32]} Kf7 {[%emt 0:00:06]} 32. Rxf8+ {[%emt 0:00:08]} Kxf8 {[%emt 0:00:05]} 33. Qc8+ {[%emt 0:00:04]} 1-0

[Event "XII Cracow ICC-A 2024"]
[Site "Krakow"]
[Date "2024.06.24"]
[Round "4.19"]
[White "Jaskolka, Tomasz"]
[Black "Turski, Bartlomiej"]
[Result "1/2-1/2"]
[ECO "E62"]
[WhiteElo "2249"]
[BlackElo "2334"]
[Annotator "RC"]
[PlyCount "107"]
[EventDate "2024.06.20"]
[EventType "swiss"]
[EventCountry "POL"]
[SourceTitle "playchess.com"]
[Source "ChessBase"]
[SourceQuality "1"]
[TimeControl "40/5400+30:1800+30"]

1. d4 {[%emt 0:00:05]} Nf6 {[%emt 0:00:11]} 2. c4 {[%emt 0:00:06]} g6 {[%emt 0:00:06]} 3. g3 {[%emt 0:00:11]} Bg7 {[%emt 0:00:30]} 4. Bg2 {[%emt 0:00:06]} d6 {[%emt 0:00:18]} 5. Nc3 {[%emt 0:00:58]} O-O {[%emt 0:00:47]} 6. Nf3 {[%emt 0:00:03]} Nc6 {[%emt 0:00:07]} 7. O-O {[%emt 0:00:40]} Bg4 {[%emt 0:00:05]} 8. d5 {[%emt 0:06:38]} Na5 {[%emt 0:00:06]} 9. b3 {[%emt 0:04:15]} c5 {[%emt 0:02:25]} 10. Qe1 {[%emt 0:06:20]} a6 {[%emt 0:04:28]} 11. e4 {[%emt 0:00:23]} b5 {[%emt 0:07:48]} 12. Bd2 {[%emt 0:35:07]} b4 {[%emt 0:02:38]} 13. Na4 {[%emt 0:09:09]} Bd7 {[%emt 0:05:38]} 14. e5 {[%emt 0:08:34]} Ng4 {[%emt 0:08:01]} 15. h3 {[%emt 0:00:34]} Nxe5 {[%emt 0:04:41]} 16. Nxe5 {[%emt 0:00:04]} Bxa4 {[%emt 0:00:16]} 17. Ng4 {[%emt 0:02:40]} Bd7 {[%emt 0:06:09]} 18. Nh6+ {[%emt 0:00:31]} Kh8 {[%emt 0:00:21]} 19. Qe2 {[%emt 0:04:11]} Rc8 {[%emt 0:04:47]} 20. Rad1 {[%emt 0:03:52]} e5 {[%emt 0:13:27]} 21. h4 {[%emt 0:01:40]} f5 {[%emt 0:02:39]} 22. Bg5 {[%emt 0:00:14]} Qe8 {[%emt 0:02:30]} 23. Kh2 {[%emt 0:04:15]} Nb7 {[%emt 0:05:47]} 24. Rh1 {[%emt 0:00:57]} Nd8 {[%emt 0:02:22]} 25. Kg1 {[%emt 0:00:34]} Nf7 {[%emt 0:00:45]} 26. Nxf7+ {[%emt 0:00:03]} Qxf7 {[%emt 0:00:10]} 27. h5 {[%emt 0:00:19]} Kg8 {[%emt 0:02:52]} 28. hxg6 {[%emt 0:00:12]} Qxg6 {[%emt 0:00:49]} 29. Qh5 {[%emt 0:00:44]} Qxh5 {[%emt 0:05:24]} 30. Rxh5 {[%emt 0:00:03]} Be8 {[%emt 0:00:45]} 31. Rh4 {[%emt 0:01:27]} Bf6 {[%emt 0:02:32]} 32. Bxf6 {[%emt 0:00:02]} Rxf6 {[%emt 0:00:03]} 33. f4 {[%emt 0:00:23]} e4 {[%emt 0:02:17]} 34. Kf2 {[%emt 0:00:40]} a5 {[%emt 0:00:31]} 35. g4 {[%emt 0:01:46]} fxg4 {[%emt 0:01:59]} 36. Rxg4+ {[%emt 0:01:04]} Kf8 {[%emt 0:00:08]} 37. Re1 {[%emt 0:01:11]} Bg6 {[%emt 0:05:54]} 38. Bxe4 {[%emt 0:03:59]} Re8 {[%emt 0:01:05]} 39. Bxg6 {[%emt 0:00:36]} Rxe1 {[%emt 0:00:14]} 40. Kxe1 {[%emt 0:00:07]} hxg6 {[%emt 0:00:48]} 41. Ke2 {[%emt 0:33:15]} Kg7 {[%emt 0:35:14]} 42. Kf3 {[%emt 0:00:33]} Rf7 {[%emt 0:00:00]} 43. Rg1 {[%emt 0:00:00]} Kf6 {[%emt 0:00:00]} 44. Rh1 {[%emt 0:00:00]} Kg7 {[%emt 0:00:00]} 45. Rg1 {[%emt 0:00:00]} Kf6 {[%emt 0:00:00]} 46. Ra1 {[%emt 0:00:00]} Rh7 {[%emt 0:00:00]} 47. Re1 {[%emt 0:00:00]} Re7 {[%emt 0:00:00]} 48. Rxe7 {[%emt 0:00:00]} Kxe7 {[%emt 0:00:00]} 49. Kg3 {[%emt 0:00:00]} Kf6 {[%emt 0:00:00]} 50. Kg4 {[%emt 0:00:00]} Kf7 {[%emt 0:00:00]} 51. Kh4 {[%emt 0:01:23]} Kf6 {[%emt 0:00:00]} 52. Kg4 {[%emt 0:00:06]} Kf7 {[%emt 0:00:00]} 53. Kg5 {[%emt 0:01:12]} Kg7 {[%emt 0:00:00]} 54. f5 {[%emt 0:00:10]} 1/2-1/2

[Event "XII Cracow ICC-A 2024"]
[Site "Krakow"]
[Date "2024.06.24"]
[Round "4.20"]
[White "Gorkiewicz, Mateusz"]
[Black "Chojnacki, Krzysztof"]
[Result "1-0"]
[ECO "B53"]
[WhiteElo "2223"]
[BlackElo "2311"]
[Annotator "RC"]
[PlyCount "63"]
[EventDate "2024.06.20"]
[EventType "swiss"]
[EventCountry "POL"]
[SourceTitle "playchess.com"]
[Source "ChessBase"]
[SourceQuality "1"]
[TimeControl "40/5400+30:1800+30"]

1. e4 {[%emt 0:00:40]} c5 {[%emt 0:00:07]} 2. Nf3 {[%emt 0:00:35]} d6 {[%emt 0:00:08]} 3. d4 {[%emt 0:00:30]} cxd4 {[%emt 0:00:08]} 4. Qxd4 {[%emt 0:00:18]} Nf6 {[%emt 0:00:34]} 5. Nc3 {[%emt 0:00:18]} Nc6 {[%emt 0:00:51]} 6. Bb5 {[%emt 0:00:11]} Bd7 {[%emt 0:00:10]} 7. Bxc6 {[%emt 0:00:17]} Bxc6 {[%emt 0:00:13]} 8. Bg5 {[%emt 0:00:14]} e6 {[%emt 0:00:25]} 9. O-O-O {[%emt 0:00:31]} Be7 {[%emt 0:00:20]} 10. Rhe1 {[%emt 0:00:25]} O-O {[%emt 0:01:16]} 11. Kb1 {[%emt 0:00:21]} Qc7 {[%emt 0:06:09]} 12. Qd2 {[%emt 0:01:32]} Rfd8 {[%emt 0:01:33]} 13. Nd4 {[%emt 0:00:52]} Rab8 {[%emt 0:00:46]} 14. f3 {[%emt 0:02:03]} b5 {[%emt 0:03:40]} 15. g4 {[%emt 0:02:06]} b4 {[%emt 0:04:10]} 16. Nce2 {[%emt 0:01:58]} Be8 {[%emt 0:11:25]} 17. Ng3 {[%emt 0:04:52]} Rdc8 {[%emt 0:14:06]} 18. Rg1 {[%emt 0:13:22]} Qc3 {[%emt 0:18:07]} 19. Qc1 {[%emt 0:12:52]} Qc5 {[%emt 0:03:49]} 20. h4 {[%emt 0:05:41]} a5 {[%emt 0:04:51]} 21. Nh5 {[%emt 0:05:43]} Qe5 {[%emt 0:02:18]} 22. f4 {[%emt 0:19:23]} Qxe4 {[%emt 0:03:56]} 23. Bxf6 {[%emt 0:00:56]} Bxf6 {[%emt 0:00:34]} 24. Nxf6+ {[%emt 0:00:12]} gxf6 {[%emt 0:00:02]} 25. f5 {[%emt 0:00:45]} e5 {[%emt 0:03:07]} 26. g5 {[%emt 0:02:31]} Kh8 {[%emt 0:02:34]} 27. gxf6 {[%emt 0:02:27]} Bd7 {[%emt 0:13:31]} 28. Qh6 {[%emt 0:04:15]} Rg8 {[%emt 0:00:13]} 29. Rg7 {[%emt 0:00:49]} Bxf5 {[%emt 0:00:25]} 30. Nxf5 {[%emt 0:00:36]} Qxf5 {[%emt 0:00:06]} 31. Rdg1 {[%emt 0:00:18]} Rgc8 {[%emt 0:00:48]} 32. R7g2 {[%emt 0:00:26]} 1-0

[Event "XII Cracow ICC-A 2024"]
[Site "Krakow"]
[Date "2024.06.24"]
[Round "4.21"]
[White "Mikrut, Dariusz"]
[Black "Berin, Artem"]
[Result "1/2-1/2"]
[ECO "E01"]
[WhiteElo "2309"]
[BlackElo "2234"]
[Annotator "RC"]
[PlyCount "189"]
[EventDate "2024.06.20"]
[EventType "swiss"]
[EventCountry "POL"]
[SourceTitle "playchess.com"]
[Source "ChessBase"]
[SourceQuality "1"]
[TimeControl "40/5400+30:1800+30"]

1. d4 {[%emt 0:08:14]} Nf6 {[%emt 0:00:06]} 2. g3 {[%emt 0:00:17]} d5 {[%emt 0:00:09]} 3. Bg2 {[%emt 0:00:13]} e6 {[%emt 0:00:06]} 4. c4 {[%emt 0:00:21]} h6 {[%emt 0:00:16]} 5. Nf3 {[%emt 0:03:36]} Bd6 {[%emt 0:00:23]} 6. Nbd2 {[%emt 0:00:23]} O-O {[%emt 0:01:47]} 7. O-O {[%emt 0:00:09]} b6 {[%emt 0:02:06]} 8. b3 {[%emt 0:00:18]} Bb7 {[%emt 0:00:53]} 9. Bb2 {[%emt 0:00:14]} Nbd7 {[%emt 0:00:32]} 10. Rc1 {[%emt 0:01:18]} Rc8 {[%emt 0:00:44]} 11. cxd5 {[%emt 0:03:19]} exd5 {[%emt 0:01:34]} 12. Ne5 {[%emt 0:02:52]} c5 {[%emt 0:14:45]} 13. Nxd7 {[%emt 0:07:46]} Nxd7 {[%emt 0:00:12]} 14. Nc4 {[%emt 0:00:26]} dxc4 {[%emt 0:08:35]} 15. Bxb7 {[%emt 0:05:13]} Rc7 {[%emt 0:00:10]} 16. Bg2 {[%emt 0:00:41]} cxb3 {[%emt 0:00:42]} 17. Qxb3 {[%emt 0:01:34]} Qe7 {[%emt 0:04:18]} 18. e3 {[%emt 0:01:06]} Rfc8 {[%emt 0:07:17]} 19. dxc5 {[%emt 0:01:18]} Nxc5 {[%emt 0:02:16]} 20. Qd5 {[%emt 0:01:52]} Rd8 {[%emt 0:06:15]} 21. Qf5 {[%emt 0:15:04]} Qe6 {[%emt 0:03:54]} 22. Qxe6 {[%emt 0:04:01]} Nxe6 {[%emt 0:02:01]} 23. Rfd1 {[%emt 0:01:42]} Rxc1 {[%emt 0:02:45]} 24. Rxc1 {[%emt 0:03:13]} Bc5 {[%emt 0:01:56]} 25. Bc3 {[%emt 0:05:03]} Kf8 {[%emt 0:01:13]} 26. h4 {[%emt 0:00:15]} Ke7 {[%emt 0:00:33]} 27. Bh3 {[%emt 0:01:02]} f6 {[%emt 0:00:36]} 28. Bf5 {[%emt 0:04:14]} Ba3 {[%emt 0:01:52]} 29. Rc2 {[%emt 0:00:20]} Rd5 {[%emt 0:04:21]} 30. Be4 {[%emt 0:01:05]} Rc5 {[%emt 0:00:07]} 31. Kf1 {[%emt 0:03:43]} Rc7 {[%emt 0:02:14]} 32. Ke2 {[%emt 0:00:39]} Bd6 {[%emt 0:00:34]} 33. f4 {[%emt 0:01:16]} Nc5 {[%emt 0:03:26]} 34. Bf5 {[%emt 0:02:02]} Kf7 {[%emt 0:01:35]} 35. h5 {[%emt 0:02:17]} Ne6 {[%emt 0:00:59]} 36. Bg6+ {[%emt 0:01:16]} Ke7 {[%emt 0:00:10]} 37. Kf3 {[%emt 0:02:55]} Rc5 {[%emt 0:02:04]} 38. g4 {[%emt 0:01:03]} Rc7 {[%emt 0:00:31]} 39. Bf5 {[%emt 0:00:52]} Rc5 {[%emt 0:00:23]} 40. Ba1 {[%emt 0:04:43]} Rxc2 {[%emt 0:01:15]} 41. Bxc2 {[%emt 0:30:02]} Bc5 {[%emt 0:31:11]} 42. Bf5 {[%emt 0:00:52]} a5 {[%emt 0:04:11]} 43. Ke4 {[%emt 0:02:16]} Kd6 {[%emt 0:00:34]} 44. a4 {[%emt 0:01:52]} Nc7 {[%emt 0:04:38]} 45. g5 {[%emt 0:08:13]} Nd5 {[%emt 0:01:49]} 46. gxh6 {[%emt 0:00:08]} gxh6 {[%emt 0:00:07]} 47. Bd4 {[%emt 0:01:56]} Bxd4 {[%emt 0:00:31]} 48. Kxd4 {[%emt 0:00:06]} Nc7 {[%emt 0:02:28]} 49. Bd3 {[%emt 0:00:00]} Ne6+ {[%emt 0:00:00]} 50. Kc4 {[%emt 0:00:00]} Nc7 {[%emt 0:00:00]} 51. Be4 {[%emt 0:00:00]} Ke6 {[%emt 0:00:00]} 52. Bd3 {[%emt 0:00:00]} Kd6 {[%emt 0:00:00]} 53. Be4 {[%emt 0:00:00]} Ke6 {[%emt 0:00:00]} 54. Bg6 {[%emt 0:00:00]} Kd6 {[%emt 0:00:00]} 55. Bf7 {[%emt 0:00:00]} Kd7 {[%emt 0:00:00]} 56. e4 {[%emt 0:00:00]} Ke7 {[%emt 0:00:00]} 57. Bd5 {[%emt 0:00:00]} Kd6 {[%emt 0:00:00]} 58. Bg8 {[%emt 0:00:00]} Ke7 {[%emt 0:00:00]} 59. e5 {[%emt 0:00:00]} fxe5 {[%emt 0:00:00]} 60. fxe5 {[%emt 0:00:00]} Kd7 {[%emt 0:00:00]} 61. Bd5 {[%emt 0:00:00]} Ke7 {[%emt 0:00:00]} 62. Bc6 {[%emt 0:00:00]} Ne6 {[%emt 0:00:00]} 63. Bf3 {[%emt 0:04:43]} Nc5 {[%emt 0:00:00]} 64. Bd1 {[%emt 0:00:10]} Ke6 {[%emt 0:00:00]} 65. Kd4 {[%emt 0:00:11]} Ke7 {[%emt 0:00:00]} 66. Kd5 {[%emt 0:02:06]} Kd7 {[%emt 0:00:00]} 67. Be2 {[%emt 0:00:18]} Ke7 {[%emt 0:00:00]} 68. Bb5 {[%emt 0:00:44]} Ne6 {[%emt 0:00:00]} 69. Ke4 {[%emt 0:00:29]} Ng7 {[%emt 0:00:00]} 70. Be2 {[%emt 0:00:08]} Ne6 {[%emt 0:03:10]} 71. Bd1 {[%emt 0:00:28]} Nc7 {[%emt 0:10:28]} 72. Kf5 {[%emt 0:01:33]} b5 {[%emt 0:00:04]} 73. axb5 {[%emt 0:00:08]} Nxb5 {[%emt 0:00:04]} 74. Kg6 {[%emt 0:00:06]} Ke6 {[%emt 0:01:45]} 75. Kxh6 {[%emt 0:00:06]} Kxe5 {[%emt 0:00:04]} 76. Kg6 {[%emt 0:01:10]} Nc7 {[%emt 0:04:35]} 77. Bb3 {[%emt 0:01:36]} Ne8 {[%emt 0:00:27]} 78. h6 {[%emt 0:00:12]} Nf6 {[%emt 0:00:04]} 79. Bf7 {[%emt 0:00:47]} a4 {[%emt 0:00:27]} 80. Ba2 {[%emt 0:00:11]} a3 {[%emt 0:00:23]} 81. Bf7 {[%emt 0:00:46]} Nd7 {[%emt 0:00:06]} 82. Kg7 {[%emt 0:00:53]} Nf6 {[%emt 0:00:06]} 83. Kg6 {[%emt 0:00:10]} Nd7 {[%emt 0:00:05]} 84. Kg7 {[%emt 0:00:37]} Nf6 {[%emt 0:00:06]} 85. Ba2 {[%emt 0:00:46]} Kf5 {[%emt 0:00:11]} 86. Bb3 {[%emt 0:01:11]} Ke5 {[%emt 0:00:46]} 87. Kg6 {[%emt 0:00:09]} Nd7 {[%emt 0:00:08]} 88. Ba2 {[%emt 0:00:33]} Nf6 {[%emt 0:00:09]} 89. Bb1 {[%emt 0:00:05]} Ke6 {[%emt 0:00:08]} 90. Kg7 {[%emt 0:00:21]} Ne8+ {[%emt 0:00:57]} 91. Kf8 {[%emt 0:00:25]} Nf6 {[%emt 0:00:09]} 92. Ba2+ {[%emt 0:00:45]} Kf5 {[%emt 0:00:07]} 93. Kg7 {[%emt 0:00:12]} Kg5 {[%emt 0:00:13]} 94. h7 {[%emt 0:00:20]} Nxh7 {[%emt 0:00:05]} 95. Kxh7 1/2-1/2

[Event "XII Cracow ICC-A 2024"]
[Site "Krakow"]
[Date "2024.06.24"]
[Round "4.22"]
[White "Kracht, Raphael"]
[Black "Brzezina, Piotr"]
[Result "0-1"]
[ECO "B22"]
[WhiteElo "2199"]
[BlackElo "2298"]
[Annotator "RC"]
[PlyCount "104"]
[EventDate "2024.06.20"]
[EventType "swiss"]
[EventCountry "POL"]
[SourceTitle "playchess.com"]
[Source "ChessBase"]
[SourceQuality "1"]
[TimeControl "40/5400+30:1800+30"]

1. e4 {[%emt 0:10:16]} c5 {[%emt 0:01:29]} 2. c3 {[%emt 0:00:17]} Nf6 {[%emt 0:00:09]} 3. e5 {[%emt 0:00:49]} Nd5 {[%emt 0:00:17]} 4. Bc4 {[%emt 0:00:37]} Nb6 {[%emt 0:00:14]} 5. Bb3 {[%emt 0:00:07]} Nc6 {[%emt 0:01:11]} 6. Nf3 {[%emt 0:00:07]} d5 {[%emt 0:00:48]} 7. exd6 {[%emt 0:00:11]} Qxd6 {[%emt 0:00:07]} 8. O-O {[%emt 0:00:18]} Be6 {[%emt 0:00:32]} 9. Bxe6 {[%emt 0:00:07]} Qxe6 {[%emt 0:00:03]} 10. a4 {[%emt 0:00:37]} Qd7 {[%emt 0:01:10]} 11. a5 {[%emt 0:00:09]} Nd5 {[%emt 0:00:14]} 12. a6 {[%emt 0:00:47]} b6 {[%emt 0:00:38]} 13. d4 {[%emt 0:03:29]} cxd4 {[%emt 0:15:35]} 14. Nxd4 {[%emt 0:00:18]} e6 {[%emt 0:00:20]} 15. Nb5 {[%emt 0:23:14]} Nc7 {[%emt 0:16:27]} 16. Qxd7+ {[%emt 0:09:59]} Kxd7 {[%emt 0:00:01]} 17. Rd1+ {[%emt 0:01:06]} Kc8 {[%emt 0:00:05]} 18. c4 {[%emt 0:03:52]} Bb4 {[%emt 0:19:43]} 19. Be3 {[%emt 0:05:58]} Rd8 {[%emt 0:04:01]} 20. Rxd8+ {[%emt 0:00:49]} Kxd8 {[%emt 0:00:14]} 21. N1c3 {[%emt 0:00:37]} Bxc3 {[%emt 0:05:59]} 22. Rd1+ {[%emt 0:18:36]} Bd4 {[%emt 0:20:15]} 23. Bxd4 {[%emt 0:10:43]} Nxd4 {[%emt 0:00:29]} 24. Rxd4+ {[%emt 0:00:35]} Kc8 {[%emt 0:00:03]} 25. Nd6+ {[%emt 0:00:33]} Kd7 {[%emt 0:00:09]} 26. Nxf7+ {[%emt 0:01:32]} Ke8 {[%emt 0:00:09]} 27. Ne5 {[%emt 0:03:50]} Rd8 {[%emt 0:01:36]} 28. Rxd8+ {[%emt 0:00:55]} Kxd8 {[%emt 0:00:04]} 29. Nc6+ {[%emt 0:00:07]} Kd7 {[%emt 0:00:03]} 30. Nxa7 {[%emt 0:00:05]} Nxa6 {[%emt 0:00:03]} 31. Kf1 {[%emt 0:02:22]} Nc5 {[%emt 0:06:51]} 32. Ke2 {[%emt 0:01:31]} Na4 {[%emt 0:00:04]} 33. b3 {[%emt 0:01:18]} Nc5 {[%emt 0:00:07]} 34. b4 {[%emt 0:00:07]} Na6 {[%emt 0:00:07]} 35. b5 {[%emt 0:00:06]} Nb8 {[%emt 0:00:34]} 36. Ke3 {[%emt 0:01:32]} Kc7 {[%emt 0:00:08]} 37. Ke4 {[%emt 0:00:41]} Kb7 {[%emt 0:04:43]} 38. Ke5 {[%emt 0:00:33]} Kxa7 {[%emt 0:00:20]} 39. Kxe6 {[%emt 0:00:06]} Kb7 {[%emt 0:00:11]} 40. f4 {[%emt 0:00:55]} Kc7 {[%emt 0:02:47]} 41. g4 {[%emt 0:25:09]} Nd7 {[%emt 0:02:09]} 42. f5 {[%emt 0:01:06]} Nf6 {[%emt 0:13:25]} 43. h3 {[%emt 0:05:07]} Kd8 {[%emt 0:13:47]} 44. Kf7 {[%emt 0:00:15]} Ne8 {[%emt 0:00:05]} 45. g5 {[%emt 0:00:43]} Kd7 {[%emt 0:00:30]} 46. f6 {[%emt 0:00:45]} gxf6 {[%emt 0:00:21]} 47. gxf6 {[%emt 0:00:07]} Nd6+ {[%emt 0:00:13]} 48. Kg7 {[%emt 0:00:36]} Ke6 {[%emt 0:00:13]} 49. Kxh7 {[%emt 0:00:49]} Kxf6 {[%emt 0:00:09]} 50. h4 {[%emt 0:00:06]} Nxc4 {[%emt 0:00:22]} 51. h5 {[%emt 0:00:03]} Nd6 {[%emt 0:00:14]} 52. Kh6 {[%emt 0:01:16]} Nxb5 {[%emt 0:00:09]} 0-1

[Event "XII Cracow ICC-A 2024"]
[Site "Krakow"]
[Date "2024.06.24"]
[Round "4.23"]
[White "Eliseev, Sergey"]
[Black "Kutowski, Marcel"]
[Result "0-1"]
[ECO "B90"]
[WhiteElo "2296"]
[BlackElo "2230"]
[Annotator "RC"]
[PlyCount "86"]
[EventDate "2024.06.20"]
[EventType "swiss"]
[EventCountry "POL"]
[SourceTitle "playchess.com"]
[Source "ChessBase"]
[SourceQuality "1"]
[TimeControl "40/5400+30:1800+30"]

1. e4 {[%emt 0:04:46]} c5 {[%emt 0:00:07]} 2. Nf3 {[%emt 0:00:05]} d6 {[%emt 0:00:04]} 3. d4 {[%emt 0:00:38]} cxd4 {[%emt 0:00:07]} 4. Nxd4 {[%emt 0:00:09]} Nf6 {[%emt 0:00:05]} 5. Nc3 {[%emt 0:00:06]} a6 {[%emt 0:00:04]} 6. a4 {[%emt 0:00:04]} e5 {[%emt 0:01:50]} 7. Nf3 {[%emt 0:00:54]} h6 {[%emt 0:01:57]} 8. g3 {[%emt 0:00:06]} Be7 {[%emt 0:01:32]} 9. Bg2 {[%emt 0:00:37]} Be6 {[%emt 0:02:05]} 10. O-O {[%emt 0:00:06]} O-O {[%emt 0:02:00]} 11. Re1 {[%emt 0:01:58]} Qc7 {[%emt 0:03:59]} 12. Be3 {[%emt 0:21:05]} Nbd7 {[%emt 0:02:39]} 13. Nh4 {[%emt 0:08:52]} Rfc8 {[%emt 0:11:21]} 14. Nf5 {[%emt 0:07:31]} Bf8 {[%emt 0:04:12]} 15. Qf3 {[%emt 0:01:30]} b5 {[%emt 0:07:42]} 16. axb5 {[%emt 0:30:34]} axb5 {[%emt 0:00:15]} 17. Rac1 {[%emt 0:09:42]} b4 {[%emt 0:09:17]} 18. Nd5 {[%emt 0:00:01]} Bxd5 {[%emt 0:01:28]} 19. exd5 {[%emt 0:00:02]} Ra2 {[%emt 0:00:59]} 20. b3 {[%emt 0:01:12]} e4 {[%emt 0:07:32]} 21. Qd1 {[%emt 0:00:59]} Rxc2 {[%emt 0:01:23]} 22. Qd4 {[%emt 0:00:36]} Qc3 {[%emt 0:02:31]} 23. Qxc3 {[%emt 0:05:42]} R2xc3 {[%emt 0:02:34]} 24. Rb1 {[%emt 0:00:17]} Ne5 {[%emt 0:06:21]} 25. Bd4 {[%emt 0:01:04]} Rd3 {[%emt 0:02:55]} 26. Bxe4 {[%emt 0:02:40]} Nxe4 {[%emt 0:01:16]} 27. Rxe4 {[%emt 0:00:08]} Nf3+ {[%emt 0:02:03]} 28. Kg2 {[%emt 0:00:01]} g6 {[%emt 0:01:15]} 29. Re3 {[%emt 0:00:29]} Rxd4 {[%emt 0:03:58]} 30. Nxd4 {[%emt 0:00:01]} Nxd4 {[%emt 0:00:18]} 31. Re4 {[%emt 0:02:34]} Bg7 {[%emt 0:02:33]} 32. Re7 {[%emt 0:00:01]} Nf5 {[%emt 0:02:10]} 33. Re4 {[%emt 0:01:25]} Bc3 {[%emt 0:00:39]} 34. Rd1 {[%emt 0:00:12]} Kf8 {[%emt 0:01:37]} 35. Kf3 {[%emt 0:01:09]} Rc5 {[%emt 0:00:48]} 36. Rc4 {[%emt 0:00:23]} Rxc4 {[%emt 0:00:22]} 37. bxc4 Nd4+ {[%emt 0:00:14]} 38. Ke4 {[%emt 0:00:13]} Nb3 {[%emt 0:00:06]} 39. Kd3 {[%emt 0:00:43]} Nc5+ {[%emt 0:00:11]} 40. Kc2 {[%emt 0:00:25]} Bf6 {[%emt 0:00:12]} 41. f4 {[%emt 0:03:32]} b3+ {[%emt 0:00:31]} 42. Kb1 {[%emt 0:00:04]} Ne4 {[%emt 0:00:58]} 43. Rd3 {[%emt 0:00:11]} Bc3 {[%emt 0:02:21]} 0-1

[Event "XII Cracow ICC-A 2024"]
[Site "Krakow"]
[Date "2024.06.24"]
[Round "4.24"]
[White "Dziewonski, Dariusz"]
[Black "Garbuz, Vitaliy"]
[Result "1-0"]
[ECO "B30"]
[WhiteElo "2293"]
[BlackElo "2205"]
[Annotator "RC"]
[PlyCount "87"]
[EventDate "2024.06.20"]
[EventType "swiss"]
[EventCountry "POL"]
[SourceTitle "playchess.com"]
[Source "ChessBase"]
[SourceQuality "1"]
[TimeControl "40/5400+30:1800+30"]

1. e4 {[%emt 0:06:58]} c5 {[%emt 0:01:47]} 2. Nf3 {[%emt 0:00:03]} Nc6 {[%emt 0:00:08]} 3. Bb5 {[%emt 0:00:05]} e6 {[%emt 0:00:06]} 4. O-O {[%emt 0:00:10]} Nge7 {[%emt 0:00:09]} 5. Re1 {[%emt 0:00:08]} a6 {[%emt 0:00:09]} 6. Bf1 {[%emt 0:00:06]} d5 {[%emt 0:03:43]} 7. exd5 {[%emt 0:02:52]} Qxd5 {[%emt 0:00:56]} 8. Na3 {[%emt 0:00:48]} Nf5 {[%emt 0:02:00]} 9. Nc4 {[%emt 0:03:52]} Qd8 {[%emt 0:01:40]} 10. Nce5 {[%emt 0:07:16]} Nxe5 {[%emt 0:01:22]} 11. Nxe5 {[%emt 0:00:04]} Be7 {[%emt 0:12:42]} 12. g3 {[%emt 0:04:44]} O-O {[%emt 0:07:58]} 13. Bg2 {[%emt 0:01:10]} Qc7 {[%emt 0:02:22]} 14. d3 {[%emt 0:03:25]} f6 {[%emt 0:19:30]} 15. Nc4 {[%emt 0:01:05]} Bd7 {[%emt 0:06:20]} 16. a4 {[%emt 0:05:41]} e5 {[%emt 0:15:19]} 17. a5 {[%emt 0:12:32]} Bc6 {[%emt 0:02:28]} 18. Be4 {[%emt 0:01:46]} Bxe4 {[%emt 0:01:17]} 19. dxe4 {[%emt 0:02:30]} Rad8 {[%emt 0:00:31]} 20. Qg4 {[%emt 0:02:07]} Nd4 {[%emt 0:00:47]} 21. Ne3 {[%emt 0:02:42]} Qd7 {[%emt 0:09:59]} 22. Qxd7 {[%emt 0:01:34]} Rxd7 {[%emt 0:05:14]} 23. Kg2 {[%emt 0:01:01]} Bd8 {[%emt 0:02:58]} 24. b3 {[%emt 0:10:50]} g6 {[%emt 0:00:05]} 25. Bb2 {[%emt 0:04:10]} f5 {[%emt 0:00:05]} 26. Bxd4 {[%emt 0:15:03]} exd4 {[%emt 0:00:02]} 27. Nc4 {[%emt 0:00:07]} fxe4 {[%emt 0:00:38]} 28. Rxe4 {[%emt 0:00:04]} d3 {[%emt 0:02:56]} 29. cxd3 {[%emt 0:00:04]} Rxd3 {[%emt 0:00:21]} 30. Re3 {[%emt 0:00:10]} Rxe3 {[%emt 0:00:26]} 31. fxe3 {[%emt 0:00:42]} Bc7 {[%emt 0:00:39]} 32. Rd1 {[%emt 0:01:01]} Rf7 {[%emt 0:01:02]} 33. Rd5 {[%emt 0:02:42]} Rf5 {[%emt 0:00:07]} 34. Rd7 {[%emt 0:04:41]} Rf7 {[%emt 0:00:04]} 35. Rd1 {[%emt 0:01:11]} Rf6 {[%emt 0:00:10]} 36. e4 {[%emt 0:01:15]} Rc6 {[%emt 0:01:58]} 37. Rd7 {[%emt 0:00:51]} b5 {[%emt 0:00:28]} 38. axb6 {[%emt 0:00:27]} Bxb6 {[%emt 0:00:03]} 39. e5 {[%emt 0:00:29]} Bc7 {[%emt 0:00:44]} 40. Kf3 {[%emt 0:00:20]} Bxe5 {[%emt 0:00:27]} 41. Nxe5 {[%emt 0:30:52]} Rb6 {[%emt 0:30:12]} 42. Rd3 {[%emt 0:00:36]} Rb4 {[%emt 0:00:17]} 43. Rc3 {[%emt 0:00:40]} a5 {[%emt 0:00:08]} 44. Nd3 {[%emt 0:00:18]} 1-0